[Event "Saint Louis Norm Congress-IM 2022"]
[Site "Saint Louis"]
[Date "2022.05.20"]
[Round "2.5"]
[White "Tokhirjonova, Gulrukhbegim"]
[Black "Lee, Alice"]
[Result "1-0"]
[ECO "B57"]
[WhiteElo "2337"]
[BlackElo "2344"]
[Annotator "TA"]
[PlyCount "125"]
[EventDate "2022.05.20"]
[EventType "tourn"]
[EventCountry "USA"]
[SourceTitle "playchess.com"]
[Source "ChessBase"]
[SourceQuality "1"]
[TimeControl "5400+30"]

{[%evp 17,125,14,39,20,25,0,19,11,0,0,0,-15,5,0,60,58,147,128,214,201,167,185,185,170,203,195,212,145,166,137,207,140,147,136,94,125,140,123,122,129,136,68,61,42,116,131,107,-79,0,0,0,0,0,0,36,33,53,8,62,0,92,98,110,106,102,77,194,179,251,212,283,277,391,402,399,362,435,362,456,437,12835,12835,12837,12837,12837,12837,29981,981,850,825,12840,12840,12842,12839,29990,29991,29991,29991,29991,12845,29993,29988,29992,29992,29992,12842,12844,12845,12845,12843]} 1. e4 {[%emt 0:04:10] Edouard,Romain} c5 {[%emt 0:00:07]} 2. Nc3 {[%emt 0:00:44]} Nc6 {[%emt 0:00:16]} 3. Nf3 {[%emt 0:00:21]} d6 {[%emt 0:00:31]} 4. Bc4 {[%emt 0:02:01]} Nf6 {[%emt 0:00:26]} 5. d4 {[%emt 0:04:11]} cxd4 {[%emt 0:00:11]} 6. Nxd4 {[%emt 0:00:05]} Qb6 {[%emt 0:00:09]} 7. Nb3 {[%emt 0:00:57]} e6 {[%emt 0:00:11]} 8. Bf4 {[%emt 0:02:43]} Ne5 {[%emt 0:00:09]} 9. Be2 {[%emt 0:01:50]} Bd7 {[%emt 0:00:13]} 10. Qd2 {[%emt 0:04:02] B57: Classical Sicilian: Sozin with 6...Qb6.} Be7 {[%emt 0:01:04] The main line 10...Be7 scores better than 10...a6.} 11. f3 {[%emt 0:03:46]} O-O {[%emt 0:03:01]} 12. g4 {[%emt 0:04:27] The position is equal.} Rfd8 {[%emt 0:04:50]} 13. O-O-O {[%emt 0:02:56]} Qc7 {[%emt 0:02:07] [#]} 14. h4 $146 {[%emt 0:01:15][%cal Bh2h4,Bh4h5,Bh5h6][%mdl 32]} ({Predecessor:} 14. g5 Nh5 15. Be3 Nc4 16. Bxc4 Qxc4 17. Ne2 a5 18. Kb1 a4 19. Nbc1 Be8 20. Ng3 {1-0 (52) Nakamura,H (2733)-Edouard,R (2636) Cap d'Agde 2010 EXT 2011 [Edouard,Romain]}) 14... a6 {[%emt 0:18:24]} 15. h5 {[%emt 0:07:55]} Be8 {[%emt 0:08:42]} (15... b5 $11) 16. Nd4 {[%emt 0:08:35] Strongly threatening g5.} Nfd7 {[%emt 0:07:20] [#]} (16... Rdc8 $14) 17. Nf5 $1 $16 {[%emt 0:06:46][%mdl 512]} Nf8 {[%emt 0:11:25]} (17... exf5 $2 18. Nd5 Qc5 19. Nxe7+ Kh8 20. Nxf5 $18) (17... Nc5 $16) (17... Bf8 18. h6) 18. Nxe7+ {[%emt 0:05:08]} Qxe7 {[%emt 0:00:07]} 19. h6 {[%emt 0:00:19]} g6 {[%emt 0:01:08]} 20. g5 {[%emt 0:00:50]} Qc7 {[%emt 0:08:31]} 21. Qd4 {[%emt 0:03:28]} b5 {[%emt 0:02:06]} 22. Be3 {[%emt 0:02:49]} f5 {[%emt 0:00:27]} 23. gxf6 {[%emt 0:00:47]} Nf7 {[%emt 0:02:26]} (23... Nc6 $16 24. Qd2 Bf7) 24. f4 {[%emt 0:01:31][%cal Of4f5]} Rab8 {[%emt 0:01:59]} 25. Bf3 {[%emt 0:08:54]} b4 {[%emt 0:02:40]} 26. Ne2 {[%emt 0:00:08]} (26. Nd5 exd5 27. exd5 Ba4 $17) 26... Rdc8 {[%emt 0:02:04][%csl Gc8][%cal Rc7c2]} 27. Qd2 {[%emt 0:04:13]} b3 {[%emt 0:04:13]} 28. axb3 {[%emt 0:02:51]} Rxb3 {[%emt 0:00:18]} 29. Nc3 {[%emt 0:02:38]} (29. Kb1 $1 $16 Rbb8 30. Bd4) 29... Rbb8 {[%emt 0:01:32]} 30. Bd4 {[%emt 0:04:10] aiming for Bg4.} (30. e5 Qa5 31. Nb1 Qa2 $11) 30... Qa5 {[%emt 0:00:57]} (30... Qb7 $1 $14 31. b3 a5) 31. Nb1 {[%emt 0:00:53]} Qa2 {[%emt 0:01:58]} 32. Qd3 $2 {[%emt 0:01:58]} (32. f5 $1 $16 {keeps the pressure on.}) 32... Ba4 {[%emt 0:06:35]} ({Black should try} 32... Rb3 $1 $17 {[%cal Rb3d3]} 33. Bc3 Bb5) 33. Rh2 {[%emt 0:01:13]} e5 {[%emt 0:01:51]} 34. fxe5 {[%emt 0:01:53]} dxe5 {[%emt 0:00:10]} (34... Nxe5 $2 35. Bxe5 dxe5 36. Qd5+ Qxd5 37. exd5 $16 (37. Rxd5 Rc6 $16)) 35. Bc3 {[%emt 0:00:06]} Bb5 {[%emt 0:01:57]} 36. Qe3 {[%emt 0:03:00] Bg4 is the strong threat.} ({Much worse is} 36. Qd5 Bc4 37. Qa5 Rxb2 38. Qxa2 Rxa2 $15) 36... Bc4 $1 {[%emt 0:02:09]} 37. Bg4 {[%emt 0:00:18]} Rc7 {[%emt 0:00:28]} ({Better is} 37... Be6 $11 38. Bxe6 Qxe6) 38. Na3 {[%emt 0:02:45]} (38. Qg3 $1 $14) 38... Bb5 {[%emt 0:03:08]} (38... Qa1+ $11 {keeps the balance.} 39. Kd2 Rd8+ 40. Ke1 Rxd1+ 41. Bxd1 Be6) 39. Nxb5 {[%emt 0:00:41] Really sharp! White leaves nothing to chance now.} axb5 {[%emt 0:00:50] [#]} 40. b3 $1 $36 {[%emt 0:00:14][%mdl 2048] Keeping Black busy.} Qa6 {[%emt 0:01:25]} 41. Rd5 {[%emt 0:00:48] 0x0.002518e79495dp-1022s more active pieces.} Re8 {[%emt 0:00:49]} (41... Qxf6 $16 42. Bh3 g5) 42. Rf2 $18 {[%emt 0:01:14]} Qa3+ {[%emt 0:01:22]} (42... Ne6 $142 43. Kb1 (43. Bxe5 $2 Nxe5 44. Bxe6+ Qxe6 $19) 43... Ra8) 43. Bb2 {[%emt 0:00:10]} Qa5 {[%emt 0:00:08]} 44. Rfd2 {[%emt 0:01:08]} Qa6 {[%emt 0:00:17]} (44... Rb7 {is a better defense.} 45. Qc5 Qb6 46. Qxb6 Rxb6) 45. Be2 {[%emt 0:00:22]} Qxf6 {[%emt 0:00:28]} 46. Bxb5 {[%emt 0:00:12]} Rb8 {[%emt 0:00:32][%cal Ob8b5] And now ...Rxb5! would win.} 47. Bc4 {[%emt 0:01:33] This bishop pair is nice.} Ne6 {[%emt 0:01:31] Against Rc5} 48. Rf2 {[%emt 0:00:44]} Nf4 {[%emt 0:00:16]} (48... Qg5 $142 49. Qxg5 Nexg5 50. Bxe5 Rxc4) 49. Rxe5 {[%emt 0:00:24]} Rxc4 {[%emt 0:00:37]} 50. Rxf4 {[%emt 0:00:27]} Qd6 {[%emt 0:00:45]} 51. Rd5 {[%emt 0:00:36][%cal Be5d5,Bd5d7,Bd7f7][%mdl 32]} Qb4 {[%emt 0:00:25]} 52. bxc4 {[%emt 0:00:35]} (52. Rd7 $142 Rf8 53. bxc4 Rb8 54. Ba3 Qb1+ 55. Kd2 Qa1 56. Rfxf7 Qe5 57. Qf4) 52... Qxb2+ {[%emt 0:00:04]} 53. Kd2 {[%emt 0:00:26]} Qb7 {[%emt 0:00:33]} 54. Qd4 {[%emt 0:00:20][%csl Gh6][%cal Rd4g7]} Qb4+ {[%emt 0:00:08]} 55. Ke2 {[%emt 0:00:19][%csl Gh6][%cal Rd4g7]} Qf8 {[%emt 0:00:11] Against Qg7+} 56. Rd7 {[%emt 0:00:16]} Qxh6 {[%emt 0:00:15]} 57. Rdxf7 {[%emt 0:00:07]} Re8 {[%emt 0:00:24] [#]} 58. Qd5 {[%emt 0:00:31]} (58. Rh4 $142 $3 Kxf7 59. Rxh6 Kg8 60. Qd7 Rxe4+ 61. Kf3 Rxc4 62. Rxh7 Rc3+ 63. Ke4 Rc4+ 64. Kd5 Rd4+ 65. Kxd4 g5 66. Qg7#) 58... Kh8 {[%emt 0:00:14]} 59. Rf2 {[%emt 0:00:17]} g5 {[%emt 0:00:14]} 60. Qd4+ {[%emt 0:00:53]} Kg8 {[%emt 0:00:05]} 61. Qf6 {[%emt 0:00:25]} (61. Qd7 $142 Rb8 62. Qd5 Qh5+ 63. Kd2 Qxf7 64. Qxf7+ Kh8 65. Qf6+ Kg8 66. Qxg5+ Kh8 67. Qf6+ Kg8 68. Rg2#) 61... Rxe4+ {[%emt 0:01:00]} 62. Kd3 {[%emt 0:00:09] Threatening mate with Rf8+.} Qxf6 {[%emt 0:00:38]} 63. R2xf6 {[%emt 0:00:10] Weighted Error Value: White=0.18 (very precise) /Black=0.54} 1-0

[Event "Saint Louis Norm Congress-IM 2022"]
[Site "Saint Louis"]
[Date "2022.05.20"]
[Round "3.1"]
[White "Lee, Alice"]
[Black "Posthuma, Joshua"]
[Result "1/2-1/2"]
[ECO "A50"]
[WhiteElo "2344"]
[BlackElo "2405"]
[Annotator "TA"]
[PlyCount "182"]
[EventDate "2022.05.20"]
[EventType "tourn"]
[EventCountry "USA"]
[SourceTitle "playchess.com"]
[Source "ChessBase"]
[SourceQuality "1"]
[TimeControl "5400+30"]

{[%evp 11,181,7,13,8,14,6,35,11,18,12,12,14,19,10,14,9,16,-20,-13,-31,-35,-38,-29,-30,-33,-38,50,-30,-25,-47,-40,-33,-52,-58,-54,-58,-62,-66,-37,-66,-61,-61,-62,-76,-74,-81,-83,-78,-75,-101,-87,-94,-85,-90,-85,-89,-85,-83,-80,-80,-80,-77,-62,-68,-73,-74,-64,-69,-72,-94,-87,-135,-137,-143,-156,-129,-141,-196,-196,-194,-8,-4,0,-34,-34,-34,-36,-50,-50,-46,-59,-587,-566,-1445,-1319,-1537,-234,-5783,-3083,-4134,-5739,-5045,-2510,-5072,-5065,-29976,-12851,-10410,-12534,-12791,-5397,-12327,-6390,-5381,-3414,-2200,-1184,-1162,-37,-45,-45,-68,-68,-75,-106,-6756,-6258,-5489,-5505,-2676,-8,-8,0,-869,-934,-833,-807,-2265,-8,-8,-8,-8,-8,-8,0,0,0,0,0,0,0,0,0,0,0,0,0,0,0,0,0,0,0,0,0,0,0,0,0,0,0,0]} 1. d4 {[%emt 0:00:02]} Nf6 {[%emt 0:00:05]} 2. c4 {[%emt 0:00:04]} b6 {[%emt 0:00:13]} 3. Nc3 {[%emt 0:00:06]} Bb7 {[%emt 0:00:11]} 4. d5 {[%emt 0:00:06]} e6 {[%emt 0:00:40]} 5. a3 {[%emt 0:00:04]} Bd6 {[%emt 0:10:12]} 6. Nf3 {[%emt 0:00:09]} O-O {[%emt 0:00:33]} 7. g3 {[%emt 0:00:14] A50: Queen's Fianchetto Defence (1 d4 Nf6 2 c4 b6).} c6 {[%emt 0:06:03][%cal Rc6d5]} 8. Bg2 {[%emt 0:00:11]} Na6 {[%emt 0:09:07][%cal Re6d5,Bb8a6,Ba6c7,Bc7e6][%mdl 32]} 9. O-O {[%emt 0:03:15] White is slightly better.} cxd5 {[%emt 0:02:15]} 10. cxd5 {[%emt 0:00:15]} Nxd5 {[%emt 0:08:21]} 11. Nxd5 {[%emt 0:00:49]} exd5 {[%emt 0:00:11]} (11... Bxd5 $2 12. e4 $18) 12. b4 {[%emt 0:02:34]} Nc7 {[%emt 0:01:34]} 13. Bb2 {[%emt 0:00:46]} Re8 {[%emt 0:04:05] [#]} 14. Re1 $146 {[%emt 0:04:48]} ({Predecessor:} 14. e3 a5 15. Qd2 axb4 16. axb4 Qe7 17. Rxa8 Rxa8 18. Qd4 Ne6 19. Qxb6 Rb8 20. Nd4 Qf8 21. Rd1 Bc6 22. Qa6 Nxd4 23. Bxd4 {½-½ (23) Blake,M (2033)-Galvin,J (2005) ICCF email 2012}) 14... a5 {[%emt 0:04:26]} 15. Qd2 {[%emt 0:06:20]} axb4 {[%emt 0:05:05]} 16. axb4 {[%emt 0:00:15]} Qe7 {[%emt 0:08:31]} 17. Qd4 {[%emt 0:05:01][%csl Gb2,LRb6,LRg7][%cal Rd4g7]} Ne6 {[%emt 0:00:51]} 18. Qxb6 {[%emt 0:00:16]} Bxb4 {[%emt 0:00:52]} (18... Rab8 $15) 19. Reb1 {[%emt 0:04:31]} (19. Qxb7 $14 Rab8 20. Qxd5 $1 Bxe1 21. Be5) 19... Bc6 $11 {[%emt 0:03:14]} 20. Ne5 {[%emt 0:04:34]} Qc5 {[%emt 0:02:51]} 21. Qxc5 {[%emt 0:04:56]} Bxc5 {[%emt 0:00:57]} 22. Rd1 {[%emt 0:11:33]} Rxa1 {[%emt 0:02:28]} 23. Bxa1 {[%emt 0:00:11]} Ra8 {[%emt 0:01:02]} 24. Bc3 {[%emt 0:01:27]} d4 {[%emt 0:04:00]} 25. Ba1 {[%emt 0:07:58]} Bxg2 {[%emt 0:06:37]} 26. Kxg2 {[%emt 0:00:04]} d6 {[%emt 0:00:55]} 27. Nf3 {[%emt 0:05:46][%cal Ra1d4]} Ra4 {[%emt 0:00:12]} 28. Kf1 {[%emt 0:01:58]} Kf8 {[%emt 0:00:51]} 29. Bb2 {[%emt 0:01:16]} Ke7 {[%emt 0:00:40]} 30. Rd3 {[%emt 0:14:54]} Rb4 {[%emt 0:01:41]} 31. Rd2 {[%emt 0:00:27]} Rc4 {[%emt 0:02:59]} 32. Rd3 {[%emt 0:00:58]} g5 {[%emt 0:02:35]} 33. h3 {[%emt 0:05:23]} h5 {[%emt 0:00:21]} 34. Rd1 {[%emt 0:01:04]} g4 {[%emt 0:01:39]} 35. hxg4 {[%emt 0:00:05]} hxg4 {[%emt 0:00:05]} 36. Ne1 {[%emt 0:00:15]} Bb4 {[%emt 0:00:50]} 37. Nd3 {[%emt 0:00:18]} Bc3 {[%emt 0:00:50]} 38. Bc1 {[%emt 0:01:09]} Ra4 {[%emt 0:00:56]} 39. Bf4 {[%emt 0:01:02]} Nc5 {[%emt 0:01:15]} 40. Bg5+ {[%emt 0:01:50]} Ke6 {[%emt 0:00:42]} 41. Bf4 {[%emt 0:01:52]} (41. Nf4+ $142 Ke5 42. Rb1) 41... Kd5 $17 {[%emt 0:01:16]} 42. Rb1 {[%emt 0:04:40]} Kc4 {[%emt 0:03:22]} 43. Nc1 {[%emt 0:01:20]} d5 {[%emt 0:01:08]} 44. Bd6 {[%emt 0:03:36]} (44. Rb8 $17) 44... Ne4 $1 $19 {[%emt 0:01:45] ...Nd2+ is the strong threat.} 45. Bf4 {[%emt 0:00:03] [#]} Bd2 $2 {[%emt 0:00:47]} (45... Rb4 $1 $19 {[%cal Rb4b1]} 46. Rxb4+ Bxb4) 46. Nd3 $11 {[%emt 0:01:34]} Ra7 {[%emt 0:02:56] aiming for ...Bxf4.} 47. Rb8 {[%emt 0:01:23]} Bxf4 {[%emt 0:00:48]} 48. Nxf4 $15 {[%emt 0:00:11][%mdl 4096] Endgame KRN-KRN} Nc3 {[%emt 0:00:25]} 49. Rb2 {[%emt 0:01:38]} Ra1+ {[%emt 0:00:59]} 50. Kg2 {[%emt 0:00:05]} Ra2 {[%emt 0:00:35]} 51. Rxa2 {[%emt 0:00:38][%mdl 8192]} ({White should play} 51. Rb7 $1 $15) 51... Nxa2 {[%emt 0:00:01] KN-KN} 52. Nd3 {[%emt 0:01:23]} Kc3 {[%emt 0:00:15]} 53. Kf1 {[%emt 0:00:28]} Nb4 $2 {[%emt 0:00:36]} (53... Kd2 54. Nc5 Nc1) 54. Nf4 $2 {[%emt 0:00:31]} (54. Ne5 f5 55. Nf7) 54... Kd2 $19 {[%emt 0:00:24]} 55. Ng2 {[%emt 0:00:27]} d3 {[%emt 0:00:26]} 56. exd3 {[%emt 0:00:07]} d4 {[%emt 0:00:17][%cal Bd5d4,Bd4d3][%mdl 32]} 57. Nf4 {[%emt 0:00:15]} f5 {[%emt 0:00:45]} 58. Ng2 {[%emt 0:01:24]} Kxd3 {[%emt 0:00:50]} (58... Nxd3 $142 59. Nh4 Ne5 60. Ng2 Nc4 61. Nf4 d3 62. f3 Kc2 63. Nxd3 Kxd3 64. fxg4 fxg4 65. Kf2 Nd2 66. Kg1 Ke2 67. Kg2 Nf1 68. Kg1 Nxg3 69. Kg2 Ne4 70. Kg1 Kf3 71. Kf1 g3 72. Ke1 g2 73. Kd1 g1=Q+ 74. Kc2 Qb6 75. Kd3 Qc7 76. Kd4 Qc5+ 77. Kd3 Qc3#) 59. Nh4 {[%emt 0:00:05]} Ke4 {[%emt 0:00:34]} 60. Ke2 {[%emt 0:00:13]} d3+ {[%emt 0:00:34]} 61. Kd2 {[%emt 0:00:03]} Nc6 {[%emt 0:00:38]} 62. Ng2 {[%emt 0:01:17]} Ne5 {[%emt 0:00:34]} 63. Ne3 {[%emt 0:00:37] Inhibits Nc4+.} Nf3+ {[%emt 0:00:16]} 64. Kc3 {[%emt 0:00:52]} Ng1 $2 {[%emt 0:00:26]} ({Better is} 64... Nd4 $19 {Hoping for ...Nb5+.} 65. Nc4 Nb5+ 66. Kd2 Kf3) 65. Kd2 $15 {[%emt 0:00:29]} Nh3 {[%emt 0:00:21]} 66. Ke1 {[%emt 0:00:12]} Ke5 $1 {[%emt 0:00:35]} 67. Nc4+ $1 {[%emt 0:00:54]} Kd5 {[%emt 0:00:41]} 68. Nd2 $2 {[%emt 0:00:42][%mdl 8192]} (68. Ne3+ $17 Ke4 69. Nc4) 68... Kd4 $19 {[%emt 0:00:13]} 69. Nf1 {[%emt 0:00:27]} Ng5 {[%emt 0:00:32]} 70. Ne3 {[%emt 0:00:12]} Ke4 $2 {[%emt 0:00:02]} ({Black should try} 70... Nf3+ $19 71. Kd1 Ke4) 71. Kd2 $11 {[%emt 0:00:12]} Nf3+ $2 {[%emt 0:00:51][%mdl 8192]} (71... Kf3 $11 72. Nxf5 Ne4+ 73. Kxd3 Nxf2+ 74. Kd4 Ne4) 72. Kc3 $19 {[%emt 0:00:14]} Nd4 {[%emt 0:00:25] Strongly threatening ...Nb5+.} 73. Nd1 {[%emt 0:00:50] [#]} Ne6 $1 {[%emt 0:00:57] White must now prevent ...Nc5.} 74. Ne3 {[%emt 0:00:24]} Ng7 $2 {[%emt 0:00:37]} (74... Nc5 $19 {And now ...Kf3 would win.} 75. Kc4 Na4) 75. Nd1 $11 {[%emt 0:00:28] The position is equal.} Nh5 {[%emt 0:00:26]} 76. Nb2 {[%emt 0:00:49]} Kf3 {[%emt 0:00:44]} (76... f4 $5 77. Kd2 fxg3 78. fxg3 Nf6 $11) 77. Nxd3 {[%emt 0:00:07]} Nf6 {[%emt 0:00:19] Threatens to win with ...Ne4+.} 78. Kd2 {[%emt 0:00:14]} Ne4+ {[%emt 0:00:31]} 79. Ke1 {[%emt 0:00:03]} Kg2 {[%emt 0:00:37]} 80. Nf4+ {[%emt 0:00:13]} Kg1 {[%emt 0:00:12]} 81. Ne2+ {[%emt 0:00:10]} Kg2 {[%emt 0:00:04]} 82. Nf4+ {[%emt 0:00:04]} Kf3 {[%emt 0:00:03]} 83. Nd3 {[%emt 0:00:05]} Nxf2 {[%emt 0:00:28]} 84. Nxf2 {[%emt 0:00:06]} Kxg3 {[%emt 0:00:03] KN-KPP} 85. Kf1 {[%emt 0:00:13]} f4 {[%emt 0:00:15][%cal Bf5f4,Bf4f3,Bf3f2][%mdl 32]} 86. Nxg4 $1 {[%emt 0:00:06]} Kxg4 {[%emt 0:00:03] KP-K} (86... f3 {looks sharper.} 87. Ne5 f2 88. Nc4 Kh2) 87. Kg2 {[%emt 0:00:05]} f3+ {[%emt 0:00:05]} 88. Kf2 {[%emt 0:00:03]} Kf4 {[%emt 0:00:03][%cal Bg4f4,Bf4e3,Be3f3][%mdl 32]} 89. Kf1 {[%emt 0:00:03]} Ke3 {[%emt 0:00:03] ( -> ...f2)} (89... Kg3 $5 90. Kg1 Kh4 $11) 90. Ke1 {[%emt 0:00:04]} f2+ {[%emt 0:00:03]} 91. Kf1 {[%emt 0:00:03]} Kf3 {[%emt 0:00:02] Weighted Error Value: White=0.73/Black=0.32} 1/2-1/2

[Event "Saint Louis Norm Congress-IM 2022"]
[Site "Saint Louis"]
[Date "2022.05.20"]
[Round "3.2"]
[White "Yu, Jennifer"]
[Black "Tokhirjonova, Gulrukhbegim"]
[Result "1-0"]
[ECO "A20"]
[WhiteElo "2257"]
[BlackElo "2337"]
[Annotator "TA"]
[PlyCount "137"]
[EventDate "2022.05.20"]
[EventType "tourn"]
[EventCountry "USA"]
[SourceTitle "playchess.com"]
[Source "ChessBase"]
[SourceQuality "1"]
[TimeControl "5400+30"]

{[%evp 10,137,0,0,57,-2,8,13,41,31,27,28,32,39,39,35,26,37,18,34,30,23,11,0,0,0,1,3,9,0,0,0,10,8,13,9,29,21,60,53,56,49,54,51,64,58,207,216,225,104,113,115,109,108,114,105,101,106,110,106,130,97,101,110,92,105,252,252,324,322,375,374,375,368,365,316,444,251,340,339,358,346,357,359,360,309,310,304,560,555,533,540,577,574,759,741,952,544,554,561,668,664,648,608,596,591,586,574,668,664,703,662,659,645,722,722,697,727,785,777,1429,1075,1397,1352,1570,1758,1288,1233,1070,840]} 1. c4 {[%emt 0:03:35]} e5 {[%emt 0:06:55]} 2. g3 {[%emt 0:00:34]} Nf6 {[%emt 0:03:15]} 3. Bg2 {[%emt 0:00:34]} d5 {[%emt 0:01:12]} 4. cxd5 {[%emt 0:01:23]} Nxd5 {[%emt 0:00:17]} 5. Nf3 {[%emt 0:02:20]} Nc6 {[%emt 0:00:31]} 6. O-O {[%emt 0:00:54]} Bc5 {[%emt 0:02:50] [#] Prevents d4. A20: English Opening: 1...e5.} (6... Nb6 $11) 7. e3 {[%emt 0:10:34]} (7. Nxe5 $1 $14 Nxe5 8. d4) 7... Bb6 {[%emt 0:07:15]} 8. Nc3 {[%emt 0:10:10] [#]} Nf6 $146 {[%emt 0:03:17] The position is equal.} ({Predecessor:} 8... Nxc3 9. bxc3 O-O 10. d4 Re8 11. Nxe5 Nxe5 12. dxe5 c6 13. Qxd8 Bxd8 14. f4 Ba5 {½-½ (37) Owens,J (1300)-Gauna,J (2181) ICCF email 2013}) 9. d4 {[%emt 0:09:02]} exd4 {[%emt 0:02:45]} 10. exd4 {[%emt 0:00:09]} O-O {[%emt 0:00:24][%cal Rc6d4]} 11. d5 {[%emt 0:11:56]} Nb4 {[%emt 0:06:13][%cal Rb4d5]} 12. Ne5 {[%emt 0:07:59]} Re8 {[%emt 0:04:00]} 13. Nc4 {[%emt 0:01:56]} Bg4 {[%emt 0:02:27]} 14. Qb3 {[%emt 0:01:24]} Nd3 {[%emt 0:13:28]} 15. Nxb6 {[%emt 0:06:38]} axb6 {[%emt 0:00:40]} 16. Bg5 {[%emt 0:00:48][%cal Oc3e4]} h6 {[%emt 0:02:16]} 17. Bxf6 {[%emt 0:07:51]} Qxf6 {[%emt 0:00:38]} ({Resist} 17... gxf6 18. Qc2 Ne5 19. b3 $14) 18. Nb5 {[%emt 0:03:36]} ({Much worse is} 18. Qc4 Ne5 19. Qb3 (19. Qxc7 $2 Re7 $19) 19... Nf3+ 20. Bxf3 Qxf3 $15) 18... Nc5 {[%emt 0:01:50]} (18... Nxb2 $2 19. Nxc7 Red8 20. Nxa8 Rxa8 21. d6 $18) 19. Qc3 {[%emt 0:01:22]} Qxc3 {[%emt 0:01:03]} 20. Nxc3 {[%emt 0:02:28]} Bd7 {[%emt 0:03:52]} 21. Rfd1 {[%emt 0:01:24]} Kf8 {[%emt 0:00:53]} 22. Rac1 {[%emt 0:00:41]} Rec8 {[%emt 0:02:59]} 23. Rd2 {[%emt 0:01:42]} c6 {[%emt 0:04:53]} 24. b4 {[%emt 0:06:31]} Na6 {[%emt 0:00:43]} 25. dxc6 {[%emt 0:02:07]} Bxc6 {[%emt 0:00:23]} 26. Bh3 {[%emt 0:00:16]} Rc7 {[%emt 0:01:55]} (26... Rd8 $2 27. Rxd8+ Rxd8 28. b5 $18) 27. Rb1 {[%emt 0:00:03] aiming for b5. White is more active.} Be8 {[%emt 0:02:44]} (27... Bf3 $14 28. Rd3 Bc6) 28. Nd5 $18 {[%emt 0:01:16][%csl LRb6,LRc7]} Rd8 {[%emt 0:00:18]} 29. Rbd1 {[%emt 0:00:58]} (29. b5 $1 $18 {is the precise move to win.}) 29... Rc4 $16 {[%emt 0:02:18] [#]} 30. Bf1 $1 {[%emt 0:00:21]} Re4 {[%emt 0:00:21]} 31. f3 {[%emt 0:01:06]} Re5 {[%emt 0:01:47]} 32. b5 $36 {[%emt 0:00:52][%mdl 2048] Inhibits Bc6. White is on the roll.} Nc5 {[%emt 0:01:11]} 33. Nxb6 {[%emt 0:00:45]} Rxd2 {[%emt 0:00:05]} 34. Rxd2 {[%emt 0:00:02]} Re1 {[%emt 0:00:12] Threatens to win with ...Bxb5.} 35. Kf2 {[%emt 0:00:09]} Rb1 {[%emt 0:00:09]} 36. a4 {[%emt 0:02:35]} Ra1 {[%emt 0:01:26]} 37. Rd8 {[%emt 0:00:56]} Nxa4 {[%emt 0:06:21]} (37... Ra2+ $16 {might work better.} 38. Be2 Ke7) 38. Nd5 $18 {[%emt 0:00:56]} Rc1 {[%emt 0:01:21] [#]} 39. b6 $1 {[%emt 0:00:23]} Rc2+ {[%emt 0:00:59]} 40. Ke3 {[%emt 0:00:54] Bb5 is the strong threat.} Nxb6 {[%emt 0:08:14]} 41. Nxb6 {[%emt 0:00:13]} Ke7 {[%emt 0:00:08]} 42. Rd4 {[%emt 0:01:15]} Bc6 {[%emt 0:01:36]} (42... Rxh2 $142 43. Nc8+ Kf8) 43. Nd5+ {[%emt 0:00:26]} (43. Nc8+ $142 Ke8 44. Nd6+ Kf8 45. Nf5) 43... Ke8 {[%emt 0:00:52]} 44. Be2 {[%emt 0:00:38]} Rb2 {[%emt 0:01:05]} 45. Nb4 {[%emt 0:00:19]} Bd7 {[%emt 0:00:35]} 46. Nd3 {[%emt 0:00:08]} Rb1 {[%emt 0:00:15]} 47. Ne5 {[%emt 0:00:32]} Be6 {[%emt 0:00:13]} 48. f4 {[%emt 0:00:28]} f6 $2 {[%emt 0:00:37]} (48... Rb3+ 49. Rd3 Rb2) 49. Bh5+ {[%emt 0:00:42] White is clearly winning.} Ke7 {[%emt 0:01:15]} 50. Ng6+ {[%emt 0:00:31]} Kf7 {[%emt 0:00:08]} 51. Rd8 {[%emt 0:00:33][%csl Gg6][%cal Rd8f8]} Bh3 {[%emt 0:01:53]} 52. g4 {[%emt 0:00:49] And now f5 would win.} f5 {[%emt 0:02:10]} 53. Rf8+ {[%emt 0:00:37]} Ke6 {[%emt 0:00:09]} 54. Rxf5 {[%emt 0:00:10]} Rb3+ {[%emt 0:00:39]} 55. Kd4 {[%emt 0:00:29]} Rb2 {[%emt 0:00:13]} 56. Re5+ {[%emt 0:00:15]} Kd6 {[%emt 0:00:10]} 57. Rd5+ {[%emt 0:00:33]} Kc7 {[%emt 0:00:13]} 58. Kc3 {[%emt 0:00:46]} Rxh2 {[%emt 0:00:16]} 59. Ne5 {[%emt 0:00:05]} Rf2 {[%emt 0:01:55]} 60. Rd7+ {[%emt 0:00:08]} Kc8 {[%emt 0:00:19]} 61. Rf7 {[%emt 0:00:28]} Bg2 {[%emt 0:01:13]} 62. f5 {[%emt 0:00:12][%cal Bf4f5,Bf5f6,Bf6f7][%mdl 32]} Re2 {[%emt 0:00:17]} 63. Nc4 {[%emt 0:00:22]} Bc6 {[%emt 0:00:41]} 64. Rxg7 {[%emt 0:00:13]} b5 {[%emt 0:00:04]} 65. Nd6+ {[%emt 0:00:22]} Kd8 {[%emt 0:00:11]} 66. f6 {[%emt 0:00:34] Hoping for f7.} Bd5 {[%emt 0:00:31]} 67. Kd4 {[%emt 0:01:51]} Bb3 {[%emt 0:00:37]} 68. f7 {[%emt 0:01:03]} Rf2 {[%emt 0:00:46]} 69. Rg8+ {[%emt 0:00:10] Weighted Error Value: White=0.19 (very precise) /Black=0.35} 1-0